fUSD/lending_fUSD_20251002
["ID","MTS","AMOUNT","RATE_DAILY","PERIOD"]
[388830061,1759402243949,-371.520405,0.00021823,2]
[388830062,1759402243959,-151.0,0.00021823,2]
[388830063,1759402243968,-151.0,0.00021823,2]
[388830064,1759402243977,-187.012877,0.00021823,2]
[388830065,1759402243986,-223.947192,0.00021823,2]
[388830066,1759402243995,-371.520405,0.00021823,2]
[388830067,1759402244004,-187.012877,0.00021823,2]
[388830068,1759402244013,-371.520405,0.00021823,2]
[388830069,1759402244023,-151.0,0.00021823,2]
[388830070,1759402244032,-187.012877,0.00021823,2]
[388830071,1759402244042,-371.520405,0.00021823,2]
[388830072,1759402244052,-151.0,0.00021823,2]
[388830073,1759402244062,-187.012877,0.00021823,2]
[388830074,1759402244071,-151.0,0.00021823,2]
[388830075,1759402244080,-151.0,0.00021823,2]
[388830076,1759402244090,-3067.0,0.00021823,2]
[388830077,1759402244099,-151.0,0.00021823,2]
[388830078,1759402244108,-164.020798,0.00021823,2]
[388830079,1759402244117,-151.0,0.00021823,2]
[388830080,1759402244127,-164.020798,0.00021823,2]
[388830081,1759402244137,-260.317934,0.00021823,2]
[388830082,1759402244146,-151.0,0.00021823,2]
[388830083,1759402244156,-260.317934,0.00021823,2]
[388830084,1759402244166,-164.020798,0.00021823,2]
[388830085,1759402244176,-260.317934,0.00021823,2]
[388830086,1759402244186,-164.020798,0.00021823,2]
[388830087,1759402244196,-260.317934,0.00021823,2]
[388830088,1759402244205,-151.0,0.00021823,2]
[388830089,1759402244216,-151.0,0.00021823,2]
[388830090,1759402244226,-151.0,0.00021823,2]
[388830091,1759402244235,-151.0,0.00021823,2]
[388830092,1759402244244,-151.0,0.00021823,2]
[388830093,1759402244254,-151.529415,0.00021823,2]
[388830094,1759402244264,-151.0,0.00021823,2]
[388830095,1759402244273,-151.0,0.00021823,2]
[388830096,1759402244283,-335.358778,0.00021823,2]
[388830097,1759402244293,-191.260457,0.00021823,2]
[388830098,1759402244303,-162.626164,0.00021823,2]
[388830099,1759402244313,-191.260457,0.00021823,2]
[388830100,1759402244324,-335.358778,0.00021823,2]
[388830101,1759402244333,-151.0,0.00021823,2]
[388830102,1759402244343,-191.260457,0.00021823,2]
[388830103,1759402244352,-335.358778,0.00021823,2]
[388830104,1759402244363,-191.260457,0.00021823,2]
[388830105,1759402244372,-151.0,0.00021823,2]
[388830106,1759402244381,-335.358778,0.00021823,2]
[388830107,1759402244390,-787.0,0.00021823,2]
[388830108,1759402244399,-1263.0,0.00021823,2]
[388830109,1759402244408,-3396.0,0.00021823,2]
[388830110,1759402244418,-603.0,0.00021823,2]
[388830111,1759402244427,-1305.0,0.00021823,2]
[388830112,1759402244437,-1583.0,0.00021823,2]
[388830113,1759402244446,-569.0,0.00021823,2]
[388830114,1759402244455,-814.0,0.00021823,2]
[388830115,1759402244464,-330.407,0.00021823,2]
[388830116,1759402244473,-6235.0,0.00021823,2]
[388830117,1759402244483,-4179.0,0.00021823,2]
[388830118,1759402244492,-900.0,0.00021823,2]
[388830119,1759402244501,-4235.0,0.00021823,2]
[388830120,1759402244511,-2000.0,0.00021835,2]
[388830121,1759402244521,-5387.429674,0.00021865,2]
[388830122,1759402244531,-168.0,0.0002187,2]
[388830123,1759402244540,-858.98951104,0.00021873,2]
[388830124,1759402244550,-2019741.54156602,0.00021883,4]
[388830129,1759402246456,-351.06298389,0.00021564,2]
[388830130,1759402246466,-19019.45947668,0.00021883,4]
[388830131,1759402246478,-381.91961042,0.00021883,4]
[388830134,1759402246509,-351.06298389,0.00021633,2]
[388830136,1759402246520,-3766.39838719,0.00021883,4]
[388830137,1759402246535,-3812.04180002,0.00021883,4]
[388830141,1759402246556,-2774.715,0.00021883,4]
[388830332,1759403397190,201.39,0.00010257,2]
[388830340,1759403432228,-345.0,0.000185,5]
[388830341,1759403432239,-195.30570875,0.00019601,2]
[388830343,1759403432249,-121.76314772,0.0001968,2]
[388830344,1759403432319,-309.59349201,0.0001968,2]
[388830345,1759403432329,-150.0,0.00019701,2]
[388830346,1759403432342,-150.0,0.00019701,2]
[388830347,1759403432352,-150.0,0.00019701,2]
[388830348,1759403432362,-1.26794696,0.00019701,2]
[388830349,1759403432376,-148.73205304,0.00019701,2]
[388830350,1759403432387,-150.0,0.00019701,2]
[388830351,1759403432397,-150.0,0.00019701,2]
[388830352,1759403432408,-150.0,0.00019701,2]
[388830353,1759403432418,-150.0,0.00019701,2]
[388830354,1759403432428,-152.94937327,0.00019701,2]
[388830355,1759403432439,-150.0,0.00019701,2]
[388830356,1759403432449,-500.0,0.000199,2]
[388830357,1759403432459,-156.05,0.00020508,2]
[388830358,1759403432468,-317.51,0.00020508,2]
[388830359,1759403432479,-201.39,0.00020515,2]
[388830360,1759403432489,-354.02,0.00020516,2]
[388830361,1759403432499,-1000.0,0.0002054,2]
[388830362,1759403432509,-179.87990762,0.000207,2]
[388830363,1759403432520,-1100.5,0.00020741,2]
[388830364,1759403432531,-288.85368908,0.00020889,2]
[388830365,1759403432544,-229.83631092,0.00020889,2]
[388830366,1759403432554,-515.18,0.00020889,2]
[388830367,1759403432565,-523.69,0.0002089,2]
[388830368,1759403432575,-122.29279197,0.0002089,2]
[388830369,1759403432596,-394.61720803,0.0002089,2]
[388830370,1759403432607,-516.17,0.0002089,2]
[388830371,1759403432618,-527.54,0.00020891,2]
[388830372,1759403432628,-381.96869985,0.00020892,2]
[388830391,1759403438225,-289.748,0.00020688,2]
[388830392,1759403438238,-150.78130015,0.00020892,2]
[388830393,1759403438251,-520.21,0.00020894,2]
[388830394,1759403438263,-516.92,0.00020894,2]
[388830395,1759403438276,-3349.46,0.000209,2]
[388830396,1759403438288,-370.49393606,0.00020934,2]
[388830397,1759403438300,-521.28,0.0002099,2]
[388830398,1759403438313,-517.84,0.0002099,2]
[388830399,1759403438326,-180.0,0.00021,2]
[388830400,1759403438339,-526.4,0.00021023,2]
[388830401,1759403438351,-530.65,0.00021077,2]
[388830402,1759403438364,-151.0,0.00021087,2]
[388830403,1759403438378,-151.0,0.00021087,2]
[388830404,1759403438392,-151.0,0.00021087,2]
[388830405,1759403438405,-527.58,0.000211,2]
[388830406,1759403438423,-2000.0,0.000211,2]
[388830407,1759403438436,-3349.46,0.000211,2]
[388830409,1759403438450,-200.0,0.000214,7]
[388830410,1759403438463,-500.0,0.000215,7]
[388830411,1759403438476,-161.70054724,0.00021537,2]
[388830412,1759403438489,-230.99097988,0.00021538,2]
[388830413,1759403438502,-167.24731233,0.00021539,2]
[388830414,1759403438516,-184.8917182,0.00021542,2]
[388830415,1759403438529,-351.06298389,0.00021542,2]
[388830417,1759403438542,-187.34517164,0.00021543,2]
[388830420,1759403438554,-193.86169725,0.00021552,2]
[388830422,1759403438567,-193.86169725,0.00021553,2]
[388830424,1759403438579,-225.07801694,0.00021554,2]
[388830426,1759403438592,-188.65809574,0.00021554,2]
[388830427,1759403438606,-230.99097988,0.00021554,2]
[388830428,1759403438618,-167.24731233,0.00021556,2]
[388830429,1759403438631,-230.99097988,0.00021556,2]
[388830430,1759403438643,-167.24731233,0.00021561,2]
[388830431,1759403438657,-164.97726196,0.00021561,2]
[388830432,1759403438672,-187.34517164,0.00021571,2]
[388830433,1759403438685,-225.07801694,0.00021572,2]
[388830434,1759403438698,-199.49451922,0.00021577,2]
[388830435,1759403438710,-187.34517164,0.0002158,2]
[388830436,1759403438722,-167.24731233,0.00021583,2]
[388830437,1759403438735,-188.65809574,0.00021583,2]
[388830438,1759403438747,-218.97674801,0.00021585,2]
[388830439,1759403438759,-161.70054724,0.00021596,2]
[388830440,1759403438771,-187.34517164,0.000216,2]
[388830441,1759403438782,-700.0,0.000216,7]
[388830442,1759403438799,-218.97674801,0.00021603,2]
[388830443,1759403438811,-184.8917182,0.00021607,2]
[388830444,1759403438825,-199.49451922,0.00021608,2]
[388830445,1759403438838,-184.8917182,0.00021611,2]
[388830446,1759403438851,-351.06298389,0.00021619,2]
[388830447,1759403438865,-351.06298389,0.0002162,2]
[388830448,1759403438878,-187.69106546,0.00021622,2]
[388830449,1759403438891,-167.24731233,0.00021625,2]
[388830450,1759403438904,-181.51489345,0.00021627,2]
[388830451,1759403438936,-784.500026,0.00021627,2]
[388830452,1759403438951,-294.05342288,0.00021627,2]
[388830454,1759403440040,-10938.0130891,0.00021627,2]
[388830455,1759403440064,-507.00297493,0.00021627,2]
[388830459,1759403440624,-400.0,0.00021627,2]
[388830460,1759403440644,-1834.68316,0.00021627,2]
[388830461,1759403440675,-857.16113656,0.00021627,2]
[388830462,1759403440687,-28280.42727848,0.00021627,2]
[388830463,1759403440696,-193.86169725,0.00021629,2]
[388830464,1759403440706,-161.70054724,0.00021632,2]
[388830465,1759403440715,-164.97726196,0.00021632,2]
[388830466,1759403440725,-188.65809574,0.00021635,2]
[388830467,1759403440735,-193.86169725,0.00021635,2]
[388830468,1759403440745,-164.97726196,0.00021637,2]
[388830469,1759403440754,-230.99097988,0.00021637,2]
[388830470,1759403440764,-161.70054724,0.00021637,2]
[388830471,1759403440774,-164.97726196,0.0002164,2]
[388830472,1759403440783,-44077.3559814,0.00021644,2]
[388830473,1759403440792,-199.49451922,0.00021645,2]
[388830474,1759403440802,-12724.55791349,0.00021647,2]
[388830475,1759403440818,-31352.79806791,0.00021647,2]
[388830476,1759403440828,-225.07801694,0.00021648,2]
[388830477,1759403440837,-187.69106546,0.00021649,2]
[388830478,1759403440846,-187.69106546,0.00021651,2]
[388830479,1759403440856,-218.97674801,0.00021652,2]
[388830480,1759403440865,-164.97726196,0.0002166,2]
[388830481,1759403440875,-230.99097988,0.0002166,2]
[388830482,1759403440885,-193.86169725,0.00021662,2]
[388830483,1759403440894,-218.97674801,0.00021662,2]
[388830484,1759403440903,-44077.3559814,0.00021664,2]
[388830485,1759403440912,-188.65809574,0.00021664,2]
[388830486,1759403440922,-218.97674801,0.00021665,2]
[388830487,1759403440931,-225.07801694,0.00021665,2]
[388830488,1759403440940,-184.8917182,0.00021667,2]
[388830489,1759403440949,-161.70054724,0.00021669,2]
[388830490,1759403440958,-225.07801694,0.00021669,2]
[388830491,1759403440968,-187.69106546,0.00021678,2]
[388830492,1759403440977,-199.49451922,0.00021679,2]
[388830493,1759403440987,-187.34517164,0.00021683,2]
[388830494,1759403440996,-188.65809574,0.00021686,2]
[388830495,1759403441006,-184.8917182,0.00021687,2]
[388830496,1759403441016,-187.69106546,0.00021691,2]
[388830497,1759403441025,-44077.3559814,0.00021694,2]
[388830498,1759403441035,-199.49451922,0.00021696,2]
[388830499,1759403441044,-1000.0,0.000217,7]
[388830500,1759403441053,-150.0,0.000217,2]
[388830501,1759403441063,-279.56,0.000217,7]
[388830502,1759403441073,-285.5,0.00021783,2]
[388830503,1759403441083,-2694.86098381,0.00021783,2]
[388830504,1759403441092,-217.11228949,0.00021798,2]
[388830505,1759403441102,-1300.0,0.000218,7]
[388830506,1759403441112,-49791.03325823,0.000218,4]
[388830507,1759403441122,-3349.46,0.000218,2]
[388830508,1759403441131,-517.148,0.00021811,2]
[388830509,1759403441141,-5000.0,0.00021817,2]
[388830510,1759403441150,-2500.0,0.00021817,2]
[388830511,1759403441160,-186.8501536,0.00021817,2]
[388830512,1759403441169,-500.0,0.00021817,2]
[388830513,1759403441178,-500.0,0.00021817,2]
[388830514,1759403441188,-500.0,0.00021817,2]
[388830515,1759403441197,-500.0,0.00021817,2]
[388830516,1759403441206,-500.0,0.00021817,2]
[388830517,1759403441217,-500.0,0.00021817,2]
[388830518,1759403441226,-500.0,0.00021817,2]
[388830519,1759403441236,-500.0,0.00021817,2]
[388830520,1759403441245,-500.0,0.00021817,2]
[388830521,1759403441254,-500.0,0.00021817,2]
[388830523,1759403441263,-500.0,0.00021817,2]
[388830524,1759403441273,-500.0,0.00021817,2]
[388830525,1759403441282,-500.0,0.00021817,2]
[388830526,1759403441292,-500.0,0.00021817,2]
[388830527,1759403441301,-500.0,0.00021817,2]
[388830528,1759403441311,-500.0,0.00021817,2]
[388830529,1759403441320,-500.0,0.00021817,2]
[388830530,1759403441330,-500.0,0.00021817,2]
[388830531,1759403441339,-500.0,0.00021817,2]
[388830532,1759403441349,-500.0,0.00021817,2]
[388830533,1759403441360,-500.0,0.00021817,2]
[388830534,1759403441372,-500.0,0.00021817,2]
[388830535,1759403441382,-500.0,0.00021817,2]
[388830536,1759403441392,-500.0,0.00021817,2]
[388830537,1759403441401,-500.0,0.00021817,2]
[388830538,1759403441411,-200.0,0.00021817,2]
[388830539,1759403441420,-1445.0,0.00021817,2]
[388830540,1759403441430,-150.0,0.00021817,2]
[388830541,1759403441439,-500.0,0.00021817,2]
[388830542,1759403441449,-486.0,0.00021817,2]
[388830543,1759403441459,-3771.2007718,0.00021817,2]
[388830544,1759403441469,-505.34851352,0.00021817,2]
[388830545,1759403441479,-150.0,0.00021817,2]
[388830546,1759403441489,-500.0,0.00021817,2]
[388830547,1759403441498,-150.0,0.00021817,2]
[388830548,1759403441508,-471.97,0.00021817,2]
[388830549,1759403441517,-661.506,0.00021823,2]
[388830550,1759403441527,-2000.0,0.00021835,2]
[388830551,1759403441536,-217.11228949,0.00021861,2]
[388830552,1759403441546,-180.80239945,0.00021873,2]
[388830553,1759403441555,-560.37295,0.00021873,2]
[388830554,1759403441565,-156.05,0.00021875,2]
[388830555,1759403441574,-3771.2007718,0.00021878,2]
[388830556,1759403441583,-500.0,0.00021881,2]
[388830557,1759403441593,-500.0,0.00021881,2]
[388830558,1759403441604,-485.10334161,0.00021881,2]
[388830559,1759403441613,-500.0,0.00021881,2]
[388830560,1759403441623,-500.0,0.00021881,2]
[388830561,1759403441633,-3320.3010582,0.00021882,2]
[388830562,1759403441643,-2933.5676853,0.00021882,2]
[388830563,1759403441652,-1936.4419929,0.00021882,2]
[388830564,1759403441666,-23213.1114403,0.00021882,2]
[388830565,1759403441675,-1133.3163454,0.00021882,2]
[388830566,1759403441685,-69395.06870907,0.00021883,4]
[388830567,1759403441697,-476.83643344,0.00021883,4]
[388830568,1759403441708,-4418.47491596,0.00021883,4]
[388830594,1759403443669,-9444.95846451,0.00021883,4]
[388830595,1759403443680,-254.66915963,0.00021883,4]
[388830604,1759403444371,-180.80239945,0.00021882,2]
[388830605,1759403444381,-4480.72176385,0.00021883,4]
[388830606,1759403444396,-702.0,0.00021883,4]
[388830607,1759403444417,-131278.92685579,0.00021883,4]
[388830608,1759403444429,-907.81352637,0.00021883,4]
[388830609,1759403444452,-638.5,0.00021883,4]
[388830610,1759403444463,-5647.0,0.00021883,4]
[388830611,1759403444475,-448.80928647,0.00021883,4]
[388830612,1759403444486,-594408.05028133,0.00021883,4]
[388830613,1759403446235,-152.0,0.00021165,3]
[388830614,1759403446246,-284.77729553,0.00021783,2]
[388830615,1759403446255,-83.02168454,0.00021818,4]
[388830616,1759403446315,-68.97831546,0.00021818,4]
[388830617,1759403446325,-4530.40980777,0.00021883,4]
[388830618,1759403446337,-139360.07605255,0.00021883,4]
[388830619,1759403446471,-546.24412415,0.00021883,4]
[388830622,1759403447701,176.65,0.00016648,2]
[388830627,1759403546168,3044.09,0.00016648,2]
[388830853,1759404356217,476.08705931,0.00015,10]
[388830857,1759404365274,2359.90998889,8e-05,2]
[388830858,1759404365296,2520.41371271,8e-05,2]
[388830894,1759404431421,1429.87152646,0.00015,2]
[388831185,1759404631546,-354.92169007,0.000169,2]
[388831186,1759404631595,-431.81792744,0.000169,2]
[388831187,1759404631604,-3436.25992045,0.00017,2]
[388831188,1759404631703,-15554.21647751,0.00017,2]
[388831189,1759404631856,-5510.85,0.00017,2]
[388831190,1759404631876,-8221.0,0.00017,2]
[388831209,1759404637413,-1416.9095828,0.00017,2]
[388831210,1759404637471,-9950.87530566,0.00017,2]
[388831211,1759404637482,-1090.0,0.00017028,2]
[388831212,1759404637494,-1090.0,0.00017925,2]
[388831213,1759404637505,-500.0,0.000186,2]
[388831214,1759404637515,-670.41114819,0.000187,2]
[388831215,1759404637524,-1090.0,0.00018868,2]
[388831216,1759404637534,-786.73961751,0.000189,2]
[388831217,1759404637543,-2674.93067921,0.00019,2]
[388831228,1759404639344,-342.90913131,0.00019,2]
[388831229,1759404639488,-1621.97045909,0.00019,2]
[388831230,1759404639618,-6033.06282135,0.00019,2]
[388831231,1759404639631,-9679.17640588,0.00019,2]
[388831232,1759404639644,-297.57962181,0.00019,2]
[388831244,1759404642531,-7197.41435542,0.00019,2]
[388831245,1759404642542,-1549.894045,0.00019,2]
[388831246,1759404642552,-151.0,0.00019178,2]
[388831247,1759404642562,-150.0,0.00019701,2]
[388831248,1759404642571,-284.03216461,0.00019701,2]
[388831249,1759404642581,-150.0,0.00019701,2]
[388831250,1759404642591,-150.0,0.00019701,2]
[388831252,1759404642600,-150.0,0.00019701,2]
[388831253,1759404642610,-150.0,0.00019701,2]
[388831254,1759404642620,-1090.0,0.00019861,2]
[388831255,1759404642630,-6757.15,0.00020032,2]
[388831256,1759404642639,-438.07,0.00020071,2]
[388831257,1759404642649,-579.79,0.00020081,2]
[388831258,1759404642658,-646.8,0.00020081,3]
[388831259,1759404642667,-164.01,0.00020099,2]
[388831260,1759404642677,-250.0,0.0002011,2]
[388831261,1759404642686,-2010.49,0.0002026,2]
[388831262,1759404642696,-150.0,0.000203,2]
[388831263,1759404642705,-700.79,0.00020316,2]
[388831264,1759404642715,-162.17,0.00020323,2]
[388831265,1759404642726,-946.54,0.00020327,2]
[388831266,1759404642735,-370.49393606,0.00020338,2]
[388831267,1759404642745,-157.34,0.000204,2]
[388831268,1759404642755,-179.52,0.00020474,2]
[388831269,1759404642766,-1895.25683494,0.0002065,2]
[388831270,1759404642776,-500.0,0.0002067,2]
[388831271,1759404642785,-1500.0,0.00020767,2]
[388831272,1759404642795,-200.0,0.00020869,2]
[388831273,1759404642804,-1090.0,0.00020907,2]
[388831274,1759404642815,-150.0,0.0002148,2]
[388831275,1759404642825,-489.35570618,0.00021529,2]
[388831276,1759404642835,-192.90411752,0.00021533,2]
[388831277,1759404642845,-192.90411752,0.00021534,2]
[388831278,1759404642855,-213.35451889,0.00021537,2]
[388831279,1759404642865,-172.28121822,0.00021537,2]
[388831280,1759404642876,-211.09895524,0.0002154,2]
[388831281,1759404642886,-489.35570618,0.00021552,2]
[388831282,1759404642897,-211.09895524,0.00021554,2]
[388831283,1759404642906,-696.41153593,0.00021557,2]
[388831284,1759404642916,-293.19871567,0.00021558,2]
[388831285,1759404642926,-172.28121822,0.00021565,2]
[388831286,1759404642935,-228.26358157,0.00021566,2]
[388831287,1759404642945,-489.35570618,0.00021569,2]
[388831288,1759404642955,-213.35451889,0.00021572,2]
[388831289,1759404642964,-696.41153593,0.00021573,2]
[388831290,1759404642974,-195.69990872,0.00021574,2]
[388831291,1759404642984,-165.97167663,0.00021574,2]
[388831292,1759404642994,-195.69990872,0.00021579,2]
[388831293,1759404643003,-777.63327649,0.0002158,2]
[388831294,1759404643013,-192.90411752,0.00021586,2]
[388831295,1759404643024,-161.99049924,0.00021595,2]
[388831296,1759404643034,-165.97167663,0.00021596,2]
[388831297,1759404643044,-777.63327649,0.00021597,2]
[388831298,1759404643054,-228.26358157,0.00021599,2]
[388831299,1759404643063,-193.01975261,0.00021599,2]
[388831300,1759404643073,-2000.0,0.000216,2]
[388831301,1759404643083,-165.97167663,0.00021601,2]
[388831302,1759404643094,-696.41153593,0.00021602,2]
[388831303,1759404643104,-303.15453387,0.00021604,2]
[388831304,1759404643114,-213.35451889,0.00021612,2]
[388831305,1759404643123,-146.69960261,0.00021612,2]
[388831306,1759404643282,-49.00030611,0.00021612,2]
[388831307,1759404643293,-211.09895524,0.00021613,2]
[388831308,1759404643306,-161.99049924,0.00021614,2]
[388831309,1759404643316,-293.19871567,0.00021616,2]
[388831310,1759404643326,-172.28121822,0.0002162,2]
[388831311,1759404643335,-165.97167663,0.00021628,2]
[388831312,1759404643345,-165.97167663,0.00021629,2]
[388831313,1759404643355,-489.35570618,0.00021632,2]
[388831314,1759404643365,-161.99049924,0.00021633,2]
[388831315,1759404643374,-696.41153593,0.00021646,2]
[388831316,1759404643385,-172.28121822,0.00021648,2]
[388831317,1759404643394,-193.01975261,0.00021648,2]
[388831318,1759404643404,-213.35451889,0.00021649,2]
[388831319,1759404643413,-192.90411752,0.00021651,2]
[388831320,1759404643423,-303.15453387,0.00021652,2]
[388831321,1759404643433,-303.15453387,0.00021653,2]
[388831322,1759404643443,-777.63327649,0.00021653,2]
[388831323,1759404643452,-228.26358157,0.00021654,2]
[388831324,1759404643462,-195.69990872,0.00021655,2]
[388831325,1759404643471,-193.01975261,0.00021655,2]
[388831326,1759404643481,-195.69990872,0.00021656,2]
[388831327,1759404643491,-293.19871567,0.00021658,2]
[388831328,1759404643500,-466.97745,0.0002166,2]
[388831329,1759404643510,-192.90411752,0.0002166,2]
[388831330,1759404643520,-777.63327649,0.00021661,2]
[388831331,1759404643530,-228.26358157,0.00021662,2]
[388831332,1759404643540,-211.09895524,0.00021668,2]
[388831333,1759404643551,-489.35570618,0.00021669,2]
[388831334,1759404643560,-585.28481549,0.0002167,2]
[388831335,1759404643571,-293.19871567,0.00021674,2]
[388831336,1759404643581,-777.63327649,0.00021676,2]
[388831337,1759404643591,-172.28121822,0.00021676,2]
[388831338,1759404643600,-193.01975261,0.00021677,2]
[388831339,1759404643610,-168.0,0.00021677,2]
[388831340,1759404643620,-161.99049924,0.00021678,2]
[388831341,1759404643630,-303.15453387,0.00021679,2]
[388831342,1759404643639,-293.19871567,0.0002168,2]
[388831343,1759404643649,-211.09895524,0.0002168,2]
[388831344,1759404643658,-303.15453387,0.00021685,2]
[388831345,1759404643668,-228.26358157,0.00021686,2]
[388831346,1759404643678,-161.99049924,0.00021687,2]
[388831347,1759404643688,-193.01975261,0.00021691,2]
[388831348,1759404643697,-696.41153593,0.00021694,2]
[388831349,1759404643707,-213.35451889,0.00021695,2]
[388831350,1759404643717,-200.0,0.00021712,2]
[388831351,1759404644192,-1754.033,0.00021751,2]
[388831352,1759404644203,-168.0,0.00021751,2]
[388831353,1759404644214,-2828.65207,0.00021755,30]
[388831354,1759404644224,-173.68983161,0.00021782,2]
[388831355,1759404644235,-3016.96061744,0.000218,2]
[388831356,1759404644245,-170.69845008,0.00021814,2]
[388831357,1759404644261,-5000.0,0.00021817,2]
[388831358,1759404644271,-160.15727448,0.00021817,2]
[388831359,1759404644281,-715.82459255,0.00021817,2]
[388831360,1759404644291,-336.899009,0.00021817,2]
[388831361,1759404644300,-2000.0,0.00021835,2]
[388831362,1759404644311,-173.68983159,0.00021836,2]
[388831363,1759404644321,-1180.0,0.0002185,2]
[388831364,1759404644332,-3016.96061744,0.00021858,2]
[388831365,1759404644342,-276.12259351,0.00021879,2]
[388831366,1759404644352,-196771.98947347,0.0002188,2]
[388831367,1759404644362,-2746.4999999,0.00021882,2]
[388831368,1759404644372,-906.1673625,0.00021882,2]
[388831369,1759404644382,-500.0,0.00021882,2]
[388831370,1759404644392,-150.0,0.00021882,2]
[388831371,1759404644402,-500.0,0.00021882,2]
[388831372,1759404644412,-294879.97233612,0.00021883,4]
[388831378,1759404646564,-11948.0,0.00021883,4]
[388831379,1759404646662,-5328.18288378,0.00021883,4]
[388831380,1759404646679,-436.08921062,0.00021883,4]
[388831381,1759404646721,-439.91283968,0.00021883,4]
[388831382,1759404646746,-32462.824,0.00021883,4]
[388831483,1759404904337,2314.59287872,0.00016602,2]
[388831484,1759404904361,2653.32517342,0.00016602,2]
[388831499,1759405131767,158.17,0.00010234,2]
[388831538,1759405621039,187.69791884,0.00016,2]
[388831552,1759405831645,-977.0,0.00016695,2]
[388831553,1759405831655,-1003.969999,0.00019178,2]
[388831554,1759405831664,-1200.0,0.000197,2]
[388831555,1759405831674,-250.0,0.00019701,2]
[388831556,1759405831683,-161.048291,0.00019701,2]
[388831557,1759405831693,-150.0,0.00019701,2]
[388831558,1759405831702,-150.0,0.00019701,2]
[388831559,1759405831711,-150.0,0.00019701,2]
[388831560,1759405831721,-150.0,0.00019701,2]
[388831561,1759405831730,-150.0,0.00019701,2]
[388831562,1759405831739,-150.0,0.00019701,2]
[388831563,1759405831749,-258.77090564,0.00019701,2]
[388831564,1759405831758,-150.0,0.00019701,2]
[388831565,1759405831767,-150.0,0.00019701,2]
[388831566,1759405831777,-150.0,0.00019945,4]
[388831567,1759405831786,-175.8654414,0.00019982,2]
[388831568,1759405831796,-151.0,0.00020082,2]
[388831569,1759405831805,-168.0,0.00020082,2]
[388831570,1759405831815,-195.0,0.00020099,2]
[388831571,1759405831824,-300.0,0.00020099,2]
[388831572,1759405831833,-8315.63,0.00020102,2]
[388831573,1759405831842,-150.0,0.00020102,2]
[388831574,1759405831852,-1329.11940291,0.00020116,2]
[388831575,1759405831862,-1340.29,0.00020155,2]
[388831576,1759405831871,-200.0,0.00020155,2]
[388831577,1759405831881,-310.56557388,0.00020165,2]
[388831578,1759405831890,-165.33,0.00020169,2]
[388831579,1759405831899,-150.0,0.00020188,4]
[388831580,1759405831909,-370.49393606,0.00020229,2]
[388831581,1759405831918,-150.0,0.00020249,4]
[388831582,1759405831927,-150.0,0.00020249,4]
[388831583,1759405831936,-163.67897412,0.00020303,2]
[388831584,1759405831946,-500.0,0.00020303,2]
[388831585,1759405831955,-154.77115583,0.00020303,2]
[388831586,1759405831964,-151.0,0.00020303,2]
[388831587,1759405831973,-291.67471157,0.00020303,2]
[388831588,1759405831982,-500.0,0.00020303,2]
[388831589,1759405831992,-431.0,0.00020315,2]
[388831590,1759405832001,-4000.0,0.00020316,2]
[388831591,1759405832010,-12604.87,0.00020316,2]
[388831592,1759405832019,-1000.0,0.00020316,2]
[388831593,1759405832029,-467.51,0.00020316,2]
[388831594,1759405832038,-250.53,0.00020316,2]
[388831595,1759405832048,-250.0,0.00020328,2]
[388831596,1759405832057,-930.63,0.00020336,2]
[388831597,1759405832066,-166.25,0.00020349,2]
[388831598,1759405832075,-168.0,0.00020416,2]
[388831599,1759405832088,-150.0,0.00020431,4]
[388831600,1759405832098,-150.0,0.00020431,4]